[Event "ESCC-65 2022"]
[Site "Lublin"]
[Date "2022.07.11"]
[Round "7.5"]
[White "Stebbings, Anthony J"]
[Black "Syre, Christian"]
[Result "1-0"]
[ECO "B06"]
[WhiteElo "2283"]
[BlackElo "2243"]
[Annotator "ChessBase"]
[PlyCount "74"]
[EventDate "2022.07.05"]
[EventType "swiss"]
[EventCountry "POL"]
[SourceTitle "playchess.com"]
[Source "ChessBase"]
[SourceQuality "1"]
[TimeControl "40/5400+30:1800+30"]

1. e4 {[%emt 0:00:03]} d6 {[%emt 0:00:16]} 2. d4 {[%emt 0:00:06]} g6 {[%emt 0:00:08]} 3. Nc3 {[%emt 0:00:05]} Bg7 {[%emt 0:00:05]} 4. Be3 {[%emt 0:00:07]} Nc6 {[%emt 0:00:24]} 5. Nge2 {[%emt 0:01:11]} e5 {[%emt 0:00:14]} 6. h3 {[%emt 0:01:13]} a6 {[%emt 0:01:04]} 7. a4 {[%emt 0:00:34]} Bd7 {[%emt 0:10:38]} 8. g4 {[%emt 0:02:53]} exd4 {[%emt 0:18:30]} 9. Nxd4 {[%emt 0:00:06]} Nxd4 {[%emt 0:00:07]} 10. Bxd4 {[%emt 0:00:05]} Bxd4 {[%emt 0:00:11]} 11. Qxd4 {[%emt 0:00:05]} Qf6 {[%emt 0:00:06]} 12. Qe3 {[%emt 0:19:23]} Ne7 {[%emt 0:14:02]} 13. Bc4 {[%emt 0:13:44]} O-O {[%emt 0:03:26]} 14. g5 {[%emt 0:05:17]} Qg7 {[%emt 0:03:03]} 15. O-O-O {[%emt 0:02:09]} Be6 {[%emt 0:20:10]} 16. Nd5 {[%emt 0:04:30]} Nxd5 {[%emt 0:03:32]} 17. Bxd5 {[%emt 0:00:10]} Rfe8 {[%emt 0:00:50]} 18. h4 {[%emt 0:06:23]} Bxd5 {[%emt 0:09:26]} 19. Rxd5 {[%emt 0:00:05]} Re6 {[%emt 0:02:01]} 20. f3 {[%emt 0:10:31]} b5 {[%emt 0:06:15]} 21. a5 {[%emt 0:00:52]} c6 {[%emt 0:00:01]} 22. Rd4 {[%emt 0:01:04]} d5 {[%emt 0:00:27]} 23. Qd3 {[%emt 0:01:34]} dxe4 {[%emt 0:00:17]} 24. Rxe4 {[%emt 0:01:01]} Rxe4 {[%emt 0:04:33]} 25. Qxe4 {[%emt 0:00:20]} Qf8 {[%emt 0:00:42]} 26. Qxc6 {[%emt 0:06:02]} Rc8 {[%emt 0:00:01]} 27. Qe4 {[%emt 0:08:44]} Qd8 {[%emt 0:00:05]} 28. Rd1 {[%emt 0:02:00]} Qxa5 {[%emt 0:00:30]} 29. Kb1 {[%emt 0:00:21]} Qc7 {[%emt 0:00:42]} 30. f4 {[%emt 0:03:56]} Qc4 {[%emt 0:00:38]} 31. Rd4 {[%emt 0:01:06]} Qc5 {[%emt 0:01:29]} 32. h5 {[%emt 0:05:06]} gxh5 {[%emt 0:00:02]} 33. f5 {[%emt 0:00:05]} Qc7 {[%emt 0:01:04]} 34. g6 {[%emt 0:00:55]} hxg6 {[%emt 0:01:17]} 35. fxg6 {[%emt 0:00:05]} Rf8 {[%emt 0:00:22]} 36. Rd5 {[%emt 0:02:23]} Qh2 {[%emt 0:01:06]} 37. Rg5 {[%emt 0:02:42]} Qd6 {[%emt 0:01:16]} 1-0

[Event "ESCC-65 2022"]
[Site "Lublin"]
[Date "2022.07.11"]
[Round "7.6"]
[White "Olszowski, Andrzej"]
[Black "Chapman, Terry P D"]
[Result "0-1"]
[ECO "A41"]
[WhiteElo "1600"]
[BlackElo "2207"]
[Annotator "ChessBase"]
[PlyCount "74"]
[EventDate "2022.07.05"]
[EventType "swiss"]
[EventCountry "POL"]
[SourceTitle "playchess.com"]
[Source "ChessBase"]
[SourceQuality "1"]
[TimeControl "40/5400+30:1800+30"]

1. d4 {[%emt 0:00:10]} d6 {[%emt 0:01:12]} 2. Nf3 {[%emt 0:00:54]} g6 {[%emt 0:00:29]} 3. Bg5 {[%emt 0:01:51]} h6 {[%emt 0:00:44]} 4. Bh4 {[%emt 0:03:37]} Bg7 {[%emt 0:00:09]} 5. c3 {[%emt 0:00:22]} Nf6 {[%emt 0:02:11]} 6. Nbd2 {[%emt 0:00:25]} g5 {[%emt 0:01:01]} 7. Bg3 {[%emt 0:00:10]} Nh5 {[%emt 0:00:20]} 8. e4 {[%emt 0:00:29]} Nd7 {[%emt 0:01:44]} 9. Bd3 {[%emt 0:03:37]} a6 {[%emt 0:03:47]} 10. Qe2 {[%emt 0:01:43]} Nxg3 {[%emt 0:02:09]} 11. hxg3 {[%emt 0:00:20]} e6 {[%emt 0:03:43]} 12. Nc4 {[%emt 0:11:47]} Qe7 {[%emt 0:02:34]} 13. e5 {[%emt 0:04:10]} d5 {[%emt 0:08:29]} 14. Ne3 {[%emt 0:02:41]} c5 {[%emt 0:00:52]} 15. a3 {[%emt 0:06:15]} c4 {[%emt 0:02:56]} 16. Bc2 {[%emt 0:00:22]} b5 {[%emt 0:01:15]} 17. g4 {[%emt 0:01:51]} Nf8 {[%emt 0:11:19]} 18. Nf1 {[%emt 0:02:15]} Ng6 {[%emt 0:00:22]} 19. g3 {[%emt 0:07:13]} Bd7 {[%emt 0:01:06]} 20. Ne3 {[%emt 0:02:55]} Kd8 {[%emt 0:04:25]} 21. Kd2 {[%emt 0:08:08]} Be8 {[%emt 0:03:24]} 22. Nh2 {[%emt 0:13:27]} f6 {[%emt 0:06:13]} 23. Bxg6 {[%emt 0:07:40]} Bxg6 {[%emt 0:00:03]} 24. f4 {[%emt 0:00:43]} Be4 {[%emt 0:02:46]} 25. Nf3 {[%emt 0:01:24]} fxe5 {[%emt 0:08:09]} 26. dxe5 {[%emt 0:10:05]} Rf8 {[%emt 0:07:14]} 27. Nd4 {[%emt 0:01:21]} Kd7 {[%emt 0:02:11]} 28. Ng2 {[%emt 0:00:42]} Bxg2 {[%emt 0:01:18]} 29. Qxg2 {[%emt 0:00:44]} gxf4 30. Rh5 {[%emt 0:04:19]} fxg3 {[%emt 0:04:41]} 31. Qxg3 {[%emt 0:00:33]} Qf7 {[%emt 0:02:50]} 32. Ke3 {[%emt 0:00:13]} Qg6 {[%emt 0:00:13]} 33. Rd1 {[%emt 0:02:28]} Rf7 {[%emt 0:00:53]} 34. Nf3 {[%emt 0:01:10]} Qe4+ {[%emt 0:02:00]} 35. Kf2 {[%emt 0:00:25]} Raf8 {[%emt 0:00:25]} 36. Rh3 {[%emt 0:00:56]} Bxe5 {[%emt 0:04:36]} 37. Qg2 {[%emt 0:00:25]} Qc2+ 0-1

[Event "ESCC-65 2022"]
[Site "Lublin"]
[Date "2022.07.11"]
[Round "7.7"]
[White "Neumann, Joachim"]
[Black "Rak, Tomasz"]
[Result "1/2-1/2"]
[ECO "A15"]
[WhiteElo "2082"]
[BlackElo "1887"]
[Annotator "ChessBase"]
[PlyCount "126"]
[EventDate "2022.07.05"]
[EventType "swiss"]
[EventCountry "POL"]
[SourceTitle "playchess.com"]
[Source "ChessBase"]
[SourceQuality "1"]
[TimeControl "40/5400+30:1800+30"]

1. c4 {[%emt 0:00:05]} Nf6 {[%emt 0:00:01]} 2. g3 {[%emt 0:00:10]} g6 {[%emt 0:00:12]} 3. Bg2 {[%emt 0:00:16]} Bg7 {[%emt 0:00:02]} 4. Nc3 {[%emt 0:00:41]} O-O {[%emt 0:00:05]} 5. Nf3 {[%emt 0:01:02]} d6 {[%emt 0:00:18]} 6. d4 {[%emt 0:00:49]} a5 {[%emt 0:00:23]} 7. O-O {[%emt 0:00:44]} Na6 {[%emt 0:00:35]} 8. h3 {[%emt 0:03:49]} Nd7 {[%emt 0:01:11]} 9. e4 {[%emt 0:03:08]} e5 {[%emt 0:00:34]} 10. Be3 {[%emt 0:09:46]} c6 {[%emt 0:00:42]} 11. Re1 {[%emt 0:20:47]} Qe7 {[%emt 0:00:57]} 12. b3 {[%emt 0:10:35]} Nc7 {[%emt 0:02:13]} 13. Qd2 {[%emt 0:04:03]} f5 {[%emt 0:09:22]} 14. dxe5 {[%emt 0:07:45]} dxe5 {[%emt 0:00:28]} 15. Bg5 {[%emt 0:01:08]} Qf7 {[%emt 0:02:48]} 16. Bh6 {[%emt 0:04:56]} Bxh6 {[%emt 0:19:19]} 17. Qxh6 {[%emt 0:00:01]} f4 {[%emt 0:00:44]} 18. Ng5 {[%emt 0:08:35]} Qg7 {[%emt 0:07:23]} 19. Qxg7+ {[%emt 0:00:16]} Kxg7 {[%emt 0:00:04]} 20. gxf4 {[%emt 0:00:04]} Rxf4 {[%emt 0:01:06]} 21. Ne2 {[%emt 0:01:57]} Rf8 {[%emt 0:01:53]} 22. h4 {[%emt 0:05:25]} Nc5 {[%emt 0:00:31]} 23. Rad1 {[%emt 0:00:40]} h6 {[%emt 0:03:27]} 24. Nf3 {[%emt 0:02:46]} Nxe4 {[%emt 0:08:12]} 25. Nxe5 {[%emt 0:04:20]} Nxf2 {[%emt 0:00:28]} 26. Rd6 {[%emt 0:00:20]} Rf6 {[%emt 0:12:14]} 27. Rxf6 {[%emt 0:00:43]} Kxf6 {[%emt 0:00:01]} 28. Nxc6 {[%emt 0:00:43]} Nh3+ {[%emt 0:02:43]} 29. Kh2 {[%emt 0:01:11]} bxc6 {[%emt 0:00:29]} 30. Bxc6 {[%emt 0:00:42]} g5 {[%emt 0:03:25]} 31. Bxa8 {[%emt 0:01:05]} Nxa8 {[%emt 0:00:03]} 32. hxg5+ {[%emt 0:03:25]} Nxg5 {[%emt 0:02:11]} 33. Rd1 {[%emt 0:00:33]} Nc7 {[%emt 0:04:24]} 34. Rd6+ {[%emt 0:00:52]} Nce6 {[%emt 0:00:43]} 35. c5 {[%emt 0:02:32]} Ke5 {[%emt 0:01:38]} 36. Nc3 {[%emt 0:00:01]} Bb7 {[%emt 0:03:06]} 37. Rb6 {[%emt 0:00:13]} Nxc5 {[%emt 0:01:35]} 38. Rxh6 {[%emt 0:00:38]} Kd4 {[%emt 0:02:04]} 39. Rh4+ {[%emt 0:00:59]} Kd3 {[%emt 0:00:43]} 40. Rc4 {[%emt 0:00:00]} Nce6 {[%emt 0:00:00]} 41. Na4 {[%emt 0:00:33]} Ne4 {[%emt 0:06:45]} 42. Nb2+ {[%emt 0:12:35]} Ke2 {[%emt 0:03:55]} 43. Rc2+ {[%emt 0:03:10]} Kf3 {[%emt 0:02:50]} 44. Nc4 {[%emt 0:04:52]} Nd4 {[%emt 0:14:40]} 45. Rg2 {[%emt 0:02:28]} Kf4 {[%emt 0:01:11]} 46. Rg8 {[%emt 0:05:46]} Nf2 {[%emt 0:02:42]} 47. Rf8+ {[%emt 0:00:33]} Nf5 {[%emt 0:00:06]} 48. Nd6 {[%emt 0:01:19]} Ng4+ {[%emt 0:01:02]} 49. Kg1 {[%emt 0:00:09]} Be4 {[%emt 0:00:17]} 50. Nxe4 {[%emt 0:00:43]} Kxe4 {[%emt 0:00:02]} 51. Kf1 {[%emt 0:01:40]} Nd4 {[%emt 0:00:24]} 52. Ke1 {[%emt 0:00:28]} Kd3 {[%emt 0:00:59]} 53. Kd1 {[%emt 0:00:36]} Kc3 {[%emt 0:01:21]} 54. Kc1 {[%emt 0:00:27]} Ne3 {[%emt 0:00:51]} 55. Rc8+ {[%emt 0:00:21]} Kb4 56. Kd2 Ndf5 {[%emt 0:04:05]} 57. Ra8 {[%emt 0:03:11]} Nd5 {[%emt 0:01:01]} 58. Rb8+ {[%emt 0:00:41]} Kc5 {[%emt 0:00:52]} 59. Kc2 {[%emt 0:00:30]} Nd4+ {[%emt 0:01:04]} 60. Kb2 {[%emt 0:00:09]} Nc6 {[%emt 0:00:39]} 61. Rc8 {[%emt 0:00:23]} a4 {[%emt 0:01:47]} 62. Ka3 {[%emt 0:00:43]} axb3 {[%emt 0:00:38]} 63. axb3 {[%emt 0:00:02]} Kb5 {[%emt 0:00:38]} 1/2-1/2

[Event "ESCC-65 2022"]
[Site "Lublin"]
[Date "2022.07.11"]
[Round "7.8"]
[White "Sciupokas, Arunas"]
[Black "Sokolowski, Ryszard"]
[Result "0-1"]
[ECO "B06"]
[WhiteElo "1960"]
[BlackElo "2050"]
[Annotator "ChessBase"]
[PlyCount "115"]
[EventDate "2022.07.05"]
[EventType "swiss"]
[EventCountry "POL"]
[SourceTitle "playchess.com"]
[Source "ChessBase"]
[SourceQuality "1"]
[TimeControl "40/5400+30:1800+30"]

1. e4 {[%emt 0:00:03]} g6 {[%emt 0:00:16]} 2. d4 {[%emt 0:00:26]} Bg7 {[%emt 0:00:02]} 3. Nf3 {[%emt 0:00:23]} d6 {[%emt 0:00:19]} 4. Nc3 {[%emt 0:01:31]} a6 {[%emt 0:00:35]} 5. a4 {[%emt 0:13:44]} b6 {[%emt 0:01:41]} 6. Be3 {[%emt 0:04:48]} e6 {[%emt 0:02:05]} 7. Qd2 {[%emt 0:02:07]} h6 {[%emt 0:00:12]} 8. Bd3 {[%emt 0:06:50]} Ne7 {[%emt 0:03:22]} 9. O-O {[%emt 0:06:07]} Bb7 {[%emt 0:02:23]} 10. Rab1 {[%emt 0:13:00]} Nd7 {[%emt 0:02:42]} 11. b4 {[%emt 0:10:21]} g5 {[%emt 0:07:48]} 12. d5 {[%emt 0:13:27]} e5 {[%emt 0:02:27]} 13. Ne1 {[%emt 0:05:02]} Nf6 {[%emt 0:07:57]} 14. Ne2 {[%emt 0:06:41]} Ng6 {[%emt 0:04:17]} 15. Ng3 {[%emt 0:03:32]} Bc8 {[%emt 0:00:23]} 16. a5 {[%emt 0:02:14]} Nf4 {[%emt 0:13:50]} 17. axb6 {[%emt 0:03:04]} cxb6 {[%emt 0:00:02]} 18. f3 {[%emt 0:00:23]} O-O {[%emt 0:01:45]} 19. Qf2 {[%emt 0:00:34]} b5 {[%emt 0:01:52]} 20. c4 {[%emt 0:02:04]} bxc4 {[%emt 0:03:04]} 21. Bxc4 {[%emt 0:00:04]} Qc7 {[%emt 0:00:13]} 22. Qa2 {[%emt 0:01:35]} Bd7 {[%emt 0:01:00]} 23. Bxf4 {[%emt 0:01:14]} exf4 {[%emt 0:00:24]} 24. Nf5 {[%emt 0:00:45]} Bb5 {[%emt 0:01:12]} 25. Bxb5 {[%emt 0:00:29]} axb5 {[%emt 0:00:01]} 26. Qf2 {[%emt 0:00:47]} Ra3 {[%emt 0:04:33]} 27. Nxg7 {[%emt 0:00:36]} Kxg7 {[%emt 0:00:03]} 28. Rb2 {[%emt 0:01:03]} Qc4 {[%emt 0:02:06]} 29. Nc2 {[%emt 0:00:34]} Rd3 {[%emt 0:00:08]} 30. Ne1 {[%emt 0:00:56]} Rd1 {[%emt 0:00:13]} 31. Qe2 {[%emt 0:00:41]} Qc1 {[%emt 0:03:18]} 32. Rc2 {[%emt 0:00:14]} Qa1 {[%emt 0:00:27]} 33. Nd3 {[%emt 0:00:51]} Qd4+ {[%emt 0:00:09]} 34. Nf2 {[%emt 0:00:13]} Rxf1+ {[%emt 0:00:12]} 35. Kxf1 {[%emt 0:00:23]} Qxb4 {[%emt 0:00:24]} 36. Rb2 {[%emt 0:00:13]} Qd4 {[%emt 0:02:32]} 37. Rxb5 Ra8 {[%emt 0:00:04]} 38. Rb1 {[%emt 0:01:23]} Ra3 {[%emt 0:00:37]} 39. Nd1 {[%emt 0:00:55]} Kg6 {[%emt 0:00:25]} 40. Nf2 {[%emt 0:00:00]} Re3 {[%emt 0:00:00]} 41. Qc2 {[%emt 0:11:46]} Rc3 {[%emt 0:06:28]} 42. Rd1 {[%emt 0:02:34]} Qc5 {[%emt 0:01:27]} 43. Qe2 {[%emt 0:05:04]} Nd7 {[%emt 0:01:05]} 44. Nd3 {[%emt 0:04:50]} Qc4 {[%emt 0:03:23]} 45. e5 {[%emt 0:01:01]} dxe5 {[%emt 0:01:13]} 46. Qe4+ {[%emt 0:00:39]} f5 {[%emt 0:06:55]} 47. Qxc4 {[%emt 0:04:18]} Rxc4 {[%emt 0:00:02]} 48. Ra1 {[%emt 0:00:48]} e4 {[%emt 0:01:48]} 49. Ra6+ {[%emt 0:02:04]} Kf7 {[%emt 0:00:18]} 50. Rc6 {[%emt 0:01:11]} Rd4 {[%emt 0:02:37]} 51. Nc5 {[%emt 0:00:29]} Nxc5 {[%emt 0:08:29]} 52. Rxc5 {[%emt 0:00:01]} h5 {[%emt 0:00:06]} 53. Rc7+ {[%emt 0:01:16]} Kf6 {[%emt 0:00:03]} 54. h4 {[%emt 0:00:45]} gxh4 {[%emt 0:00:59]} 55. Rh7 {[%emt 0:00:45]} Kg6 {[%emt 0:02:38]} 56. Re7 {[%emt 0:00:08]} e3 {[%emt 0:00:07]} 57. Re6+ {[%emt 0:00:16]} Kg5 {[%emt 0:00:02]} 58. d6 {[%emt 0:00:44]} 0-1

[Event "ESCC-65 2022"]
[Site "Lublin"]
[Date "2022.07.11"]
[Round "7.9"]
[White "Krupa, Jerzy"]
[Black "Hewson, Brian W R"]
[Result "1-0"]
[ECO "B10"]
[WhiteElo "1771"]
[BlackElo "2049"]
[Annotator "ChessBase"]
[PlyCount "59"]
[EventDate "2022.07.05"]
[EventType "swiss"]
[EventCountry "POL"]
[SourceTitle "playchess.com"]
[Source "ChessBase"]
[SourceQuality "1"]
[TimeControl "40/5400+30:1800+30"]

1. e4 {[%emt 0:00:41]} c6 {[%emt 0:00:32]} 2. Ne2 {[%emt 0:00:17]} d5 {[%emt 0:01:56]} 3. e5 {[%emt 0:00:07]} c5 {[%emt 0:00:58]} 4. d4 {[%emt 0:00:26]} Nc6 {[%emt 0:04:11]} 5. c3 {[%emt 0:14:47]} e6 {[%emt 0:05:09]} 6. a3 {[%emt 0:01:58]} cxd4 {[%emt 0:01:16]} 7. cxd4 {[%emt 0:00:37]} Bd7 {[%emt 0:01:52]} 8. Nbc3 {[%emt 0:04:24]} Nge7 {[%emt 0:04:07]} 9. Bg5 {[%emt 0:11:50]} h6 {[%emt 0:03:44]} 10. Bxe7 {[%emt 0:01:45]} Bxe7 {[%emt 0:00:39]} 11. Qd3 {[%emt 0:04:45]} Qb6 {[%emt 0:20:46]} 12. b4 {[%emt 0:06:31]} Rc8 {[%emt 0:10:43]} 13. Rc1 {[%emt 0:01:59]} O-O {[%emt 0:01:01]} 14. Kd2 {[%emt 0:12:39]} f6 {[%emt 0:14:50]} 15. f4 {[%emt 0:07:08]} Nd8 {[%emt 0:11:48]} 16. g3 {[%emt 0:01:00]} Qa6 {[%emt 0:02:16]} 17. Qxa6 {[%emt 0:00:46]} bxa6 {[%emt 0:00:05]} 18. Bh3 {[%emt 0:00:40]} f5 {[%emt 0:00:23]} 19. g4 {[%emt 0:01:03]} fxg4 {[%emt 0:00:31]} 20. Bxg4 {[%emt 0:00:03]} Rb8 {[%emt 0:05:58]} 21. Nxd5 {[%emt 0:00:35]} exd5 {[%emt 0:00:36]} 22. Bxd7 {[%emt 0:00:15]} a5 {[%emt 0:00:14]} 23. bxa5 {[%emt 0:04:53]} Bxa3 {[%emt 0:00:16]} 24. Rb1 {[%emt 0:00:44]} Bb4+ {[%emt 0:03:51]} 25. Kd3 {[%emt 0:00:34]} Rf7 {[%emt 0:01:01]} 26. e6 {[%emt 0:00:57]} Re7 {[%emt 0:00:07]} 27. f5 {[%emt 0:00:34]} Kf8 {[%emt 0:01:28]} 28. Nf4 {[%emt 0:00:12]} Rxd7 {[%emt 0:00:52]} 29. exd7 {[%emt 0:00:11]} Ke7 {[%emt 0:00:12]} 30. Nxd5+ {[%emt 0:00:08]} 1-0

[Event "ESCC-65 2022"]
[Site "Lublin"]
[Date "2022.07.11"]
[Round "7.10"]
[White "Sosnowska, Elzbieta"]
[Black "Praszak, Michal"]
[Result "0-1"]
[ECO "B71"]
[WhiteElo "1726"]
[BlackElo "2048"]
[Annotator "ChessBase"]
[PlyCount "84"]
[EventDate "2022.07.05"]
[EventType "swiss"]
[EventCountry "POL"]
[SourceTitle "playchess.com"]
[Source "ChessBase"]
[SourceQuality "1"]
[TimeControl "40/5400+30:1800+30"]

1. e4 {[%emt 0:01:55]} c5 {[%emt 0:00:11]} 2. Nf3 {[%emt 0:00:19]} d6 {[%emt 0:00:10]} 3. d4 {[%emt 0:00:06]} cxd4 {[%emt 0:00:11]} 4. Nxd4 {[%emt 0:00:06]} Nf6 {[%emt 0:00:09]} 5. Nc3 {[%emt 0:00:04]} g6 {[%emt 0:00:09]} 6. f4 {[%emt 0:05:20]} Bg7 {[%emt 0:00:12]} 7. e5 {[%emt 0:00:38]} Nh5 {[%emt 0:00:13]} 8. Bb5+ {[%emt 0:00:54]} Bd7 {[%emt 0:00:09]} 9. e6 {[%emt 0:03:57]} fxe6 {[%emt 0:00:08]} 10. Nxe6 {[%emt 0:00:27]} Bxc3+ {[%emt 0:00:12]} 11. bxc3 {[%emt 0:00:11]} Qc8 {[%emt 0:00:04]} 12. Bxd7+ {[%emt 0:00:44]} Qxd7 {[%emt 0:00:27]} 13. Qe2 {[%emt 0:03:24]} Nf6 {[%emt 0:02:06]} 14. O-O {[%emt 0:00:34]} Nc6 {[%emt 0:00:41]} 15. Bd2 {[%emt 0:06:05]} Nd8 {[%emt 0:00:50]} 16. Nd4 {[%emt 0:01:13]} Nc6 {[%emt 0:00:53]} 17. Rae1 {[%emt 0:01:22]} Nxd4 {[%emt 0:00:34]} 18. cxd4 {[%emt 0:00:15]} Rc8 {[%emt 0:01:42]} 19. c3 {[%emt 0:01:12]} Rc7 {[%emt 0:00:58]} 20. f5 {[%emt 0:04:21]} gxf5 {[%emt 0:01:18]} 21. Qd3 {[%emt 0:00:13]} Ne4 {[%emt 0:01:38]} 22. Rxe4 {[%emt 0:03:17]} fxe4 {[%emt 0:00:09]} 23. Qxe4 {[%emt 0:00:01]} Qa4 {[%emt 0:09:25]} 24. Qd5 {[%emt 0:05:45]} Qc2 {[%emt 0:13:56]} 25. Qf7+ {[%emt 0:00:31]} Kd8 {[%emt 0:00:08]} 26. Qg7 {[%emt 0:08:43]} Re8 {[%emt 0:00:12]} 27. Qg5 {[%emt 0:01:42]} Qxa2 {[%emt 0:01:36]} 28. h3 {[%emt 0:00:50]} Rg8 {[%emt 0:04:52]} 29. Qh6 {[%emt 0:03:54]} Qd5 {[%emt 0:01:29]} 30. Rf8+ {[%emt 0:01:41]} Rxf8 {[%emt 0:01:04]} 31. Qxf8+ {[%emt 0:00:02]} Kd7 {[%emt 0:00:05]} 32. Qg7 {[%emt 0:02:55]} Qe4 {[%emt 0:01:05]} 33. Qf7 {[%emt 0:08:28]} Rc8 {[%emt 0:04:56]} 34. Qb3 {[%emt 0:05:34]} a6 {[%emt 0:02:08]} 35. d5 {[%emt 0:04:09]} b5 {[%emt 0:00:28]} 36. Qa2 {[%emt 0:00:15]} Rg8 {[%emt 0:02:42]} 37. Bh6 {[%emt 0:01:10]} Rg6 {[%emt 0:00:49]} 38. Qd2 {[%emt 0:00:14]} a5 {[%emt 0:01:38]} 39. g4 {[%emt 0:00:25]} Rf6 {[%emt 0:01:14]} 40. Be3 {[%emt 0:00:00]} Rf3 {[%emt 0:00:00]} 41. Bd4 {[%emt 0:07:20]} Rxh3 {[%emt 0:00:49]} 42. Qg5 {[%emt 0:03:39]} Rg3+ {[%emt 0:01:13]} 0-1

[Event "ESCC-65 2022"]
[Site "Lublin"]
[Date "2022.07.11"]
[Round "7.11"]
[White "Gasik, Piotr"]
[Black "Chubar, Vladimir"]
[Result "1-0"]
[ECO "A02"]
[WhiteElo "1990"]
[BlackElo "1809"]
[Annotator "ChessBase"]
[PlyCount "125"]
[EventDate "2022.07.05"]
[EventType "swiss"]
[EventCountry "POL"]
[SourceTitle "playchess.com"]
[Source "ChessBase"]
[SourceQuality "1"]
[TimeControl "40/5400+30:1800+30"]

1. f4 {[%emt 0:01:48]} g6 {[%emt 0:00:44]} 2. Nf3 {[%emt 0:00:22]} Bg7 {[%emt 0:00:30]} 3. g3 {[%emt 0:00:06]} b6 {[%emt 0:02:05]} 4. Bg2 {[%emt 0:00:50]} Bb7 {[%emt 0:00:46]} 5. O-O {[%emt 0:00:10]} c5 {[%emt 0:03:22]} 6. c3 {[%emt 0:03:44]} Nf6 {[%emt 0:03:21]} 7. d3 {[%emt 0:05:02]} O-O {[%emt 0:03:02]} 8. Na3 {[%emt 0:03:07]} d5 {[%emt 0:01:40]} 9. Bd2 {[%emt 0:01:39]} Nc6 {[%emt 0:03:36]} 10. Rc1 {[%emt 0:03:53]} a6 {[%emt 0:06:15]} 11. b4 {[%emt 0:09:07]} Qd6 {[%emt 0:06:42]} 12. Nc2 {[%emt 0:01:34]} Nd7 {[%emt 0:05:06]} 13. e4 {[%emt 0:04:58]} dxe4 {[%emt 0:02:53]} 14. dxe4 {[%emt 0:00:10]} e5 {[%emt 0:01:39]} 15. f5 {[%emt 0:04:38]} Nf6 {[%emt 0:09:45]} 16. Re1 {[%emt 0:09:15]} Rad8 {[%emt 0:06:58]} 17. Qe2 {[%emt 0:05:41]} gxf5 {[%emt 0:02:13]} 18. bxc5 {[%emt 0:04:27]} bxc5 {[%emt 0:00:55]} 19. Bg5 {[%emt 0:04:15]} Nxe4 {[%emt 0:05:16]} 20. Bxd8 {[%emt 0:03:17]} Rxd8 {[%emt 0:02:38]} 21. Ne3 {[%emt 0:00:49]} Qf6 {[%emt 0:04:36]} 22. Nxf5 {[%emt 0:08:08]} Qxf5 {[%emt 0:00:28]} 23. Nh4 {[%emt 0:00:08]} Nxg3 {[%emt 0:05:07]} 24. Nxf5 {[%emt 0:03:10]} Nxe2+ {[%emt 0:00:08]} 25. Rxe2 {[%emt 0:00:21]} Bf6 {[%emt 0:01:50]} 26. Rb1 {[%emt 0:03:13]} Bc8 {[%emt 0:04:50]} 27. Be4 {[%emt 0:00:13]} Bxf5 {[%emt 0:01:28]} 28. Bxf5 {[%emt 0:00:16]} Ne7 {[%emt 0:01:14]} 29. Be4 {[%emt 0:01:27]} Rd6 {[%emt 0:01:36]} 30. Reb2 {[%emt 0:00:54]} Kg7 31. Rb6 {[%emt 0:01:41]} Rd2 {[%emt 0:01:06]} 32. Rxa6 {[%emt 0:00:34]} Bg5 {[%emt 0:00:38]} 33. Ra7 {[%emt 0:02:24]} Re2 {[%emt 0:02:34]} 34. Ba8 {[%emt 0:02:39]} e4 {[%emt 0:04:28]} 35. Kf1 {[%emt 0:03:18]} Re3 {[%emt 0:00:54]} 36. c4 {[%emt 0:00:27]} Rf3+ {[%emt 0:01:25]} 37. Kg2 {[%emt 0:00:28]} Re3 {[%emt 0:00:55]} 38. Bd5 {[%emt 0:03:25]} Kg6 {[%emt 0:01:31]} 39. Rb3 {[%emt 0:01:56]} Re1 {[%emt 0:01:53]} 40. Rb6+ {[%emt 0:00:00]} Kg7 {[%emt 0:00:00]} 41. Rbb7 {[%emt 0:03:00]} Kf8 {[%emt 0:07:44]} 42. Rb8+ {[%emt 0:02:31]} Kg7 {[%emt 0:00:08]} 43. Re8 {[%emt 0:00:10]} Nxd5 {[%emt 0:02:32]} 44. cxd5 {[%emt 0:00:06]} e3 {[%emt 0:00:10]} 45. d6 {[%emt 0:03:30]} h5 {[%emt 0:02:48]} 46. d7 {[%emt 0:01:00]} Rd1 {[%emt 0:00:18]} 47. h4 {[%emt 0:02:04]} Bxh4 {[%emt 0:04:06]} 48. Rxe3 {[%emt 0:00:09]} Bf6 {[%emt 0:00:54]} 49. Re4 {[%emt 0:01:41]} Kg6 {[%emt 0:01:54]} 50. Rc4 {[%emt 0:01:39]} Rd5 {[%emt 0:00:31]} 51. a4 {[%emt 0:01:24]} Kf5 {[%emt 0:00:34]} 52. a5 {[%emt 0:01:00]} h4 {[%emt 0:00:20]} 53. Rc7 {[%emt 0:02:26]} Rd2+ {[%emt 0:00:47]} 54. Kf3 {[%emt 0:02:16]} Ke6 {[%emt 0:01:32]} 55. R4xc5 {[%emt 0:08:52]} h3 {[%emt 0:05:58]} 56. a6 {[%emt 0:05:47]} Rd3+ {[%emt 0:06:09]} 57. Ke2 {[%emt 0:01:55]} Ra3 {[%emt 0:00:24]} 58. R7c6+ {[%emt 0:00:53]} Ke7 {[%emt 0:01:13]} 59. Rxf6 {[%emt 0:01:02]} h2 {[%emt 0:00:15]} 60. Rh6 {[%emt 0:00:14]} Rxa6 {[%emt 0:00:11]} 61. Rch5 {[%emt 0:00:31]} Ra2+ {[%emt 0:00:46]} 62. Kd3 {[%emt 0:00:09]} Kxd7 {[%emt 0:00:05]} 63. Rxh2 {[%emt 0:00:09]} 1-0